Cogmind - Beta 16 @@@ ROGUE MODE // 2025.11.13 @ 10:24:53 Player: OMNISSIAH Result: Destroyed by G-47 Trooper with Particle Gun Performance ------------- Evolutions (2) 1000 Regions Visited (5) 1000 Robots Destroyed (42) 210 Value Destroyed (1219) 1219 Prototype IDs (27) 540 Alien Tech Used (0) 0 Bonus (300) 300 TOTAL SCORE: 4269 Bonus ------- Aligned with FarCom 300 Cogmind --------- Core Integrity 0/550 Matter 165/300 Energy 140/140 System Corruption 2% Temperature Cool (27) Movement Walking (165) Ox1 Location -8/Materials Parts ------- > --- POWER (2) -------- Light Deuterium Engine > --- PROPULSION (3) --- VSS Leg VSS Leg > --- UTILITY (4) ------ Large Storage Unit Signal Interpreter Improved Terrain Scanner > --- WEAPON (2) ------- Heavy Particle Cannon Mini Grenade Launcher > --- INVENTORY (15) --- Large Storage Unit Seismic Detector Modified TNC Targeting Computer Splice Drone Bay (6/6) Particle Cannon Particle Cannon Heavy Assault Rifle Rocket Launcher Rocket Launcher Rocket Launcher Mini Grenade Launcher Improved Datajack Mining Laser Peak State ------------ > --- POWER ------------ Light Deuterium Engine Nuclear Core > --- PROPULSION ------- VSS Leg VSS Leg Cesium-ion Thruster > --- UTILITY ---------- Large Storage Unit Signal Interpreter Improved Terrain Scanner ECM Suite > --- WEAPON ----------- Heavy Particle Cannon Mini Grenade Launcher > --- INVENTORY -------- Large Storage Unit Seismic Detector Modified TNC Targeting Computer Splice Drone Bay Particle Cannon Particle Cannon Heavy Particle Cannon Heavy Assault Rifle Rocket Launcher Rocket Launcher Rocket Launcher Mini Grenade Launcher Improved Datajack Mining Laser [Rating: 29] Favorites ----------- Power Light Ion Engine Engine Light Ion Engine Power Core Nuclear Core Propulsion Aluminum Leg Leg Aluminum Leg Flight Unit Cesium-ion Thruster Utility Large Storage Unit Device Improved Terrain Scanner Storage Large Storage Unit Processor Signal Interpreter Weapon Particle Gun Energy Gun Particle Gun Energy Cannon Particle Cannon Ballistic Gun Assault Rifle Launcher Mini Grenade Launcher Special Weapon Mining Laser Special Melee Weapon Datajack Build | -11 -10 -10 -10 -9 -8 ------- Run | Yrd Mat Min Exi Min Mat Slots Evolved 4 | . . . . . 4 Power 1 | . . . . . 1 Propulsion 1 | . . . . . 1 Utility 2 | . . . . . 2 Weapon . | . . . . . . Parts Attached 42 | 7 9 . . 2 24 Power 10 | 1 2 . . 1 6 Engine 6 | 1 1 . . 1 3 Core 4 | . 1 . . . 3 Reactor . | . . . . . . Propulsion 10 | 2 2 . . . 6 Treads . | . . . . . . Leg 8 | 2 2 . . . 4 Wheel . | . . . . . . Hover . | . . . . . . Flight 2 | . . . . . 2 Utility 8 | 2 2 . . 1 3 Device 3 | . . . . 1 2 Storage 4 | 2 2 . . . . Processor 1 | . . . . . 1 Hackware . | . . . . . . Protection . | . . . . . . Artifact . | . . . . . . Weapon 14 | 2 3 . . . 9 Energy Gun 2 | 1 1 . . . . Energy Cannon 4 | . . . . . 4 Ballistic Gun 3 | 1 1 . . . 1 Ballistic Cannon . | . . . . . . Launcher 3 | . . . . . 3 Special Weapon 1 | . 1 . . . . Impact Weapon . | . . . . . . Slashing Weapon . | . . . . . . Piercing Weapon . | . . . . . . Special Melee Weapon 1 | . . . . . 1 Unidentified Prototypes 2 | . . . . . 2 Parts Lost 10 | . . . . 1 9 Power 5 | . . . . 1 4 Propulsion 4 | . . . . . 4 Utility 1 | . . . . . 1 Weapon . | . . . . . . Highest Loss Streak 4 | . . . . 1 4 To Critical Strikes . | . . . . . . Average Backups 12 | 2 8 10 11 14 14 Power 1 | 1 2 2 2 1 . Propulsion . | . . . . . . Utility 5 | . 4 6 6 7 5 Weapon 4 | . 1 1 2 4 8 Tool/Special . | . . . . . . Unused Backups 13 | . 2 . 1 . 10 Power 1 | . 1 . . . . Propulsion . | . . . . . . Utility 4 | . . . 1 . 3 Weapon 7 | . 1 . . . 6 Tool/Special 1 | . . . . . 1 Average Slot Usage (%) 95 | . 100 100 100 99 88 Engine 10 | . 5 14 14 13 8 Core 3 | . 8 . . . 5 Leg 24 | . 28 28 28 28 19 Device 7 | . . . . 3 17 Storage 19 | . 28 28 28 24 9 Processor 3 | . . . . . 8 Energy Gun 8 | . 14 14 14 14 . Energy Cannon 3 | . . . . . 8 Ballistic Gun 3 | . 12 . . 13 . Launcher 3 | . . . . . 8 Special Weapon 4 | . 1 14 14 . . Peak Build Rating 29 | 7 11 9 12 13 29 Average Rating 13 | 5 9 9 9 10 20 On Entrance 8 | . 7 9 9 10 13 Avg Prop Armor Cover (%) 4 | . . . . . 4 Naked Turns . | . . . . . . Heaviest Build 50 | 16 50 47 47 48 48 Greatest Support 30 | 20 20 20 20 20 30 Greatest Overweight (x) 8 | . 2 2 2 2 8 Average Overweight (x) 1 | . . 2 2 1 1 Largest Inventory Capacity 15 | 8 15 15 15 15 15 Average Capacity 14 | 7 11 15 15 15 15 Most Carried 15 | 6 9 11 14 15 15 Average Carried 12 | 2 8 10 11 14 14 Final Capacity 15 | 8 15 15 15 15 15 Final Carried 14 | 6 9 11 12 14 14 Class Distribution -------------------- 42% | Scavenger-Mutant 30% | Scavenger-Skirmisher 13% | Mutant 13% | Skirmisher Dominant Class ---------------- Scavenger-Mutant | -10/Materials Scavenger-Mutant | -10/Mines Scavenger-Mutant | -10/Exiles Mutant | -9/Mines Scavenger-Skirmisher | -8/Materials Resources | -11 -10 -10 -10 -9 -8 ----------- Run | Yrd Mat Min Exi Min Mat Matter Collected 854 | 300 131 . . 40 383 Remotely . | . . . . . . Salvage Created 1209 | 163 233 . . 26 787 Parts 72 | 15 16 . . 4 37 Haulers Intercepted 1 | . . . . . 1 Recyclers Shooed 1 | . . . . . 1 Parts Field Recycled . | . . . . . . Retrieved Matter . | . . . . . . Parts Self-Destructed . | . . . . . . Prevented . | . . . . . . Parts Restored . | . . . . . . Kills | -11 -10 -10 -10 -9 -8 ------- Run | Yrd Mat Min Exi Min Mat Combat Hostiles Destroyed 27 | . 8 . . 1 18 Guns 10 | . 8 . . 1 1 Cannons 7 | . . . . . 7 AOE 10 | . . . . . 10 Classes Destroyed 10 | 2 3 . . . 5 Builder 3 | . . . . . 3 Tunneler 4 | 3 . . . 1 . Hauler 1 | . . . . . 1 Recycler 1 | 1 . . . . . Operator 1 | . . . . . 1 Watcher 5 | . 1 . . . 4 Swarmer 6 | . 5 . . 1 . Grunt 16 | . 3 . . . 13 Brawler 2 | . . . . . 2 Sentry 3 | . . . . . 3 Best Kill Streak 6 | 4 3 . . 2 6 Combat Bots Only 3 | . 3 . . 1 3 Max Kills in Single Turn 3 | 1 1 . . 1 3 Gunslinging . | . . . . . . Exploded 2 | . . . . . 2 Melee . | . . . . . . Uniques/NPCs Destroyed . | . . . . . . Combat | -11 -10 -10 -10 -9 -8 -------- Run | Yrd Mat Min Exi Min Mat Hostile Shots Fired 195 | . 76 . . 15 104 Missed 61 | . 26 . . 5 30 Hits 134 | . 50 . . 10 74 Melee 1 | . . . . . 1 Projectile 133 | . 50 . . 10 73 AOE 2 | . . . . 2 . Critical Strikes 6 | . . . . . 6 Damage Taken 2200 | . 444 . . 157 1599 Core 625 | . 55 . . 20 550 Absorbed by Shields . | . . . . . . Core Remaining (%) 85 | 100 . . . 70 . Volleys Fired 109 | 10 21 . . 5 73 Largest 2 | 2 2 . . 2 2 Hottest 165 | 60 165 . . 85 150 Shots Fired 173 | 20 41 . . 10 102 Gun 87 | 20 40 . . 10 17 Cannon 64 | . . . . . 64 Launcher 21 | . . . . . 21 Special 1 | . 1 . . . . Kinetic 51 | 10 19 . . 5 17 Thermal 101 | 10 22 . . 5 64 Explosive 21 | . . . . . 21 Electromagnetic . | . . . . . . Robot Hit Streak 8 | 4 7 . . 5 8 Robot Miss Streak 4 | 1 4 . . 4 4 Penetration Max . | . . . . . . Secondary Targets 1 | . 1 . . . . Max Gunslinging Chain 1 | . 1 . . . . Shots Hit Robots 103 | 12 22 . . 5 64 Core Hits 65 | 5 12 . . 3 45 Critical Kills 1 | . 1 . . . . Critical Parts Destroyed . | . . . . . . Critical Strikes 1 | . 1 . . . . Destroy 1 | . 1 . . . . Melee Attacks . | . . . . . . Impact . | . . . . . . Slashing . | . . . . . . Piercing . | . . . . . . Sneak Attacks . | . . . . . . Combat Hostiles . | . . . . . . Follow-up Attacks . | . . . . . . Damage Inflicted 3155 | 148 320 . . 88 2599 Guns 689 | 148 302 . . 88 151 Cannons 915 | . . . . . 915 Explosions 1525 | . . . . . 1525 Melee . | . . . . . . Ramming 26 | . 18 . . . 8 Kinetic 404 | 66 161 . . 26 151 Thermal 1200 | 82 141 . . 62 915 Explosive 1525 | . . . . . 1525 Electromagnetic . | . . . . . . Impact . | . . . . . . Slashing . | . . . . . . Piercing . | . . . . . . Highest Corruption 2 | . . . . . 2 Average Corruption 2 | . . . . . 2 Corruption Purged . | . . . . . . Corruption Blocked . | . . . . . . Overload Shots . | . . . . . . Overflow Damage 36 | . . . . . 36 Projectiles 8 | . . . . . 8 Explosions 28 | . . . . . 28 Melee . | . . . . . . Knockbacks . | . . . . . . Impact . | . . . . . . Kinetic . | . . . . . . Secondary . | . . . . . . Self-Inflicted Damage 115 | . . . . . 115 Shots 6 | . . . . . 6 Rammed . | . . . . . . Targets Rammed 9 | . 6 . . . 3 Kicked 9 | . 6 . . . 3 Crushed . | . . . . . . Highest Temperature 926 | . 90 . . 96 926 Average Temperature 168 | . 33 . . 41 199 Received Heat Transfer 756 | . 36 . . 9 711 Effects 31 | . . . . . 31 Shutdowns 10 | . . . . . 10 Energy Bleed 3 | . . . . . 3 Interference 4 | . . . . . 4 Matter Decay 1 | . . . . . 1 Short Circuit 2 | . . . . . 2 Damage (minor) 6 | . . . . . 6 Damage (major) 1 | . . . . . 1 Damage (core) 4 | . . . . . 4 Siege Activations . | . . . . . . Martial Activations . | . . . . . . Shielding Activations . | . . . . . . Robots Disrupted . | . . . . . . Combat Hostiles . | . . . . . . Robots Corrupted . | . . . . . . Combat Hostiles . | . . . . . . Parts Fried . | . . . . . . Impact Corruptions . | . . . . . . Robots Melted . | . . . . . . Combat Hostiles . | . . . . . . Parts Melted 3 | . . . . 1 2 Heat Transferred 2113 | 175 347 . . 148 1443 Parts Sabotaged . | . . . . . . Parts Stolen . | . . . . . . Parts Stripped . | . . . . . . Power Chain Reactions . | . . . . . . Alert | -11 -10 -10 -10 -9 -8 ------- Run | Yrd Mat Min Exi Min Mat Maximum Alert Level 1 | . . . . . 1 Low Security (%) 98 | 100 100 100 . 100 98 Level 1 1 | . . . . . 1 Level 2 . | . . . . . . Level 3 . | . . . . . . Level 4 . | . . . . . . Level 5 . | . . . . . . High Security . | . . . . . . Max Security . | . . . . . . Peak Influence 226 | 10 106 3 . 40 226 Initial 4 | . . 3 . . 4 Average 34 | 1 22 . . 2 51 Influence Increases 1017 | 20 234 . . 40 723 Destroy 0b10 Robot/C 540 | . 160 . . 20 360 Destroy 0b10 Robot/NC 75 | 20 5 . . 5 45 Destroy Leader 132 | . 42 . . . 90 Successful Hack 46 | . 10 . . . 36 Disable Machine 60 | . 15 . . . 45 Destroy Structure 119 | . 2 . . . 117 Partial Spotted 30 | . . . . . 30 Lose Combat Pursuer 15 | . . . . 15 . Influence Decreases 807 | 20 226 8 . 28 525 Entered New Map 13 | . . 5 . . 8 Time Decay 651 | 20 226 3 . 28 374 Lost Part 90 | . . . . . 90 Purge Threat 53 | . . . . . 53 Squads Dispatched 4 | . 1 . . . 3 Investigation 1 | . 1 . . . . Extermination . | . . . . . . Reinforcement 3 | . . . . . 3 Assault . | . . . . . . Garrison . | . . . . . . Intercept . | . . . . . . Searches Triggered . | . . . . . . Construction Impeded 1 | . . . . . 1 Haulers Reinforced . | . . . . . . Active Scanning Responses . | . . . . . . Cargo Convoy Interrupts . | . . . . . . Stealth | -11 -10 -10 -10 -9 -8 --------- Run | Yrd Mat Min Exi Min Mat Distress Signals 6 | . 1 . . 1 4 Communications Jammed . | . . . . . . Distress Signals . | . . . . . . Times Spotted 42 | . 13 . . 5 24 Peak Tracking Total 5 | . 4 . . 3 5 Tactical Retreats 3 | . . . . 1 2 ECM-based Alert Blocks 4 | . . . . . 4 Traps | -11 -10 -10 -10 -9 -8 ------- Run | Yrd Mat Min Exi Min Mat Traps Triggered 1 | . 1 . . . . Indirectly . | . . . . . . Trap Hack Attempts . | . . . . . . Triggered . | . . . . . . Disarmed . | . . . . . . Reprogrammed . | . . . . . . Reused . | . . . . . . Traps Extracted . | . . . . . . Installed . | . . . . . . Triggered . | . . . . . . Machines | -11 -10 -10 -10 -9 -8 ---------- Run | Yrd Mat Min Exi Min Mat Machines Disabled 4 | . 1 . . . 3 Max in Single Turn 1 | . 1 . . . 1 Machines Repaired . | . . . . . . Machines Dismantled . | . . . . . . Machines Sabotaged . | . . . . . . Overloaded Fab Kills . | . . . . . . Hacking | -11 -10 -10 -10 -9 -8 --------- Run | Yrd Mat Min Exi Min Mat Machines Accessed 12 | . 1 . 4 1 6 Terminals 6 | . 1 . . . 5 Fabricators . | . . . . . . Repair Stations . | . . . . . . Recycling Units . | . . . . . . Scanalyzers 1 | . . . . . 1 Garrison Access . | . . . . . . Total Hacks 48 | . 2 . 16 1 29 Successful 38 | . 2 . 16 1 19 Failed 10 | . . . . . 10 Catastrophic 1 | . . . . . 1 Database Lockouts . | . . . . . . Manual 2 | . . . 2 . . Terminals 29 | . 2 . . . 27 Fabricators . | . . . . . . Repair Stations . | . . . . . . Recycling Units . | . . . . . . Scanalyzers 2 | . . . . . 2 Garrison Access . | . . . . . . Terminal Hacks 37 | . 2 . 16 1 18 Record 17 | . . . 15 . 2 Prototype ID Bank 1 | . . . . . 1 Open Door 1 | . . . . 1 . Emergency Access Points 2 | . . . . . 2 Alert Level 3 | . . . . . 3 Unreport Threat 1 | . . . . . 1 Locate Traps 2 | . . . . . 2 Dispatch Records 1 | . . . . . 1 Maintenance Status 1 | . . . . . 1 Transport Status 1 | . . . . . 1 Investigation Status 1 | . . . . . 1 Reinforcement Status 3 | . 1 . . . 2 Zone Layout 2 | . 1 . . . 1 Proto ID Catalog 1 | . . . 1 . . Fabricator Hacks . | . . . . . . Repair Station Hacks . | . . . . . . Recycling Unit Hacks . | . . . . . . Scanalyzer 1 | . . . . . 1 Retrieve Study 1 | . . . . . 1 Garrison Access Hacks . | . . . . . . Unauthorized Hacks . | . . . . . . Terminals . | . . . . . . Fabricators . | . . . . . . Repair Stations . | . . . . . . Recycling Units . | . . . . . . Scanalyzers . | . . . . . . Garrison Access . | . . . . . . Data Cores Recovered . | . . . . . . Used . | . . . . . . Hacking Detections 7 | . 1 . . . 6 Full Trace Events . | . . . . . . Feedback Events . | . . . . . . Feedback Blocked . | . . . . . . Robot Schematics Acquired . | . . . . . . Robots Built . | . . . . . . Authchips . | . . . . . . Time . | . . . . . . Total Robot Build Rating . | . . . . . . Part Schematics Acquired . | . . . . . . Parts Built . | . . . . . . Authchips . | . . . . . . Time . | . . . . . . Total Part Build Rating . | . . . . . . Part Studies Acquired 1 | . . . . . 1 Parts Repaired . | . . . . . . Time . | . . . . . . Parts Recycled . | . . . . . . Recycled Matter . | . . . . . . Retrieved Matter . | . . . . . . Retrieved Components . | . . . . . . Parts Scanalyzed . | . . . . . . Part Schematics Acquired . | . . . . . . Parts Damaged . | . . . . . . Bothacking | -11 -10 -10 -10 -9 -8 ------------ Run | Yrd Mat Min Exi Min Mat Used RIF Installer . | . . . . . . Robots Hacked . | . . . . . . Non-combat . | . . . . . . Combat . | . . . . . . Robot Hacks Applied . | . . . . . . Relay Couplers Released . | . . . . . . Fabnet Peak Effective % . | . . . . . . Robots Rewired . | . . . . . . Allies Hacked . | . . . . . . Hacks Repelled . | . . . . . . Allies | -11 -10 -10 -10 -9 -8 -------- Run | Yrd Mat Min Exi Min Mat Total Allies . | . . . . . . Largest Group . | . . . . . . Highest-Rated Group . | . . . . . . Highest-Rated Ally . | . . . . . . Total Orders . | . . . . . . Ally Attacks . | . . . . . . Total Damage . | . . . . . . Kills . | . . . . . . Allies Corrupted . | . . . . . . Allies Melted . | . . . . . . Intel | -11 -10 -10 -10 -9 -8 ------- Run | Yrd Mat Min Exi Min Mat Active Infowar (turns) 2974 | . . . . 234 2740 Terrain 2713 | . . . . 234 2479 ECM 2629 | . . . . . 2629 Robot Analysis Total . | . . . . . . Derelict Logs Recovered . | . . . . . . Drone Launches . | . . . . . . Drone Recoveries . | . . . . . . Exploration | -11 -10 -10 -10 -9 -8 ------------- Run | Yrd Mat Min Exi Min Mat Turns Passed 6912 | 161 908 168 2064 822 2789 Spaces Moved 2826 | 101 499 63 791 320 1052 Core 10 | 9 . . . . 1 Treads . | . . . . . . Legs 2782 | 92 499 63 791 320 1017 Wheels . | . . . . . . Hover . | . . . . . . Flight 34 | . . . . . 34 Fastest Speed 50 | 50 120 260 260 190 120 Average Speed 214 | 113 162 260 260 236 204 Slowest Speed 605 | 120 260 260 260 260 605 Overloaded Moves . | . . . . . . Propulsion Burnouts . | . . . . . . Robots Hopped . | . . . . . . Potential Cave-ins . | . . . . . . Cave-ins Triggered . | . . . . . . Exploration Rate (%) 43 | 5 55 21 94 44 43 Regions Visited 5 Branch Regions 3 Pre-discovered Areas . | . . . . . . Known Exits Taken . | . . . . . . Unknown Exits Taken 5 | 1 1 1 1 1 . Scrap Searched . | . . . . . . Spaces Dug 1 | . 1 . . . . Terrain Destroyed 152 | . 1 . . . 151 Melee . | . . . . . . Projectile 9 | . 1 . . . 8 AOE 143 | . . . . . 143 Terrain Rammed . | . . . . . . Walls Destroyed . | . . . . . . Machines Disabled . | . . . . . . Actions | -11 -10 -10 -10 -9 -8 --------- Run | Yrd Mat Min Exi Min Mat Total 3499 | 123 547 68 800 376 1585 Wait 460 | . . 4 4 44 408 Move 2821 | 100 498 62 790 319 1052 Hop . | . . . . . . Pick Up 25 | 6 5 2 2 4 6 Fast Attach 24 | 7 . . . . 17 Attach 6 | . . . . 1 5 Detach 1 | . . . . . 1 Swap 17 | . 9 . . 2 6 Drop 24 | . 8 . 1 1 14 Fire 109 | 10 21 . . 5 73 Melee . | . . . . . . Ram . | . . . . . . Kick 9 | . 6 . . . 3 Crush . | . . . . . . Escape Stasis . | . . . . . . Rewire 3 | . . . 3 . . Trap . | . . . . . . Miscellaneous . | . . . . . . Route ------- -11/Scrapyard -10/Materials (discovered 2 exits: [*Mat] / [*Min]) -10/Mines (discovered 2 exits: [*Mat] / *Exi) -10/Exiles (discovered 2 exits: *Min x2) -9/Mines -8/Materials History --------- Turn | Location | Event 5 | -11/Scrapyard | Discovered new exit (range 16) 162 | -11/Scrapyard | Entered Materials 315 | -10/Materials | Build established: Mutant 659 | -10/Materials | Build established: Scavenger-Mutant 848 | -10/Materials | Discovered new exit (range 15) 964 | -10/Materials | Discovered new exit (range 16) 1070 | -10/Materials | Entered Mines 1077 | -10/Mines | Received a Rocket Launcher from a helpful Derelict 1122 | -10/Mines | Discovered new exit (range 13) 1219 | -10/Mines | Deemed a non-threat by the Exiles lab entrance 1222 | -10/Mines | Discovered new exit (range 5) 1238 | -10/Mines | Entered Exiles 1314 | -10/Exiles | Discovered new exit (range 14) 1415 | -10/Exiles | Met 8R-AWN 1457 | -10/Exiles | Met EX-HEX 1663 | -10/Exiles | Met EX-DEC 1951 | -10/Exiles | Discovered new exit (range 10) 2249 | -10/Exiles | Visited The Gauntlet 2670 | -10/Exiles | Met EX-BIN 2730 | -10/Exiles | Aligned with FarCom system 2733 | -10/Exiles | Given EX-Vault access code 2956 | -10/Exiles | Opened EX-Vault 2998 | -10/Exiles | Found Lightpack 2.0 3031 | -10/Exiles | Found Modified TNC 3086 | -10/Exiles | Warned to stay clear of 0b10 Research branches 3302 | -10/Exiles | Left Exiles lab with Modified TNC 3302 | -10/Exiles | Entered Mines 3303 | -9/Mines | Assembled infested the area 3308 | -9/Mines | Assisted by a Guerilla fighting off Assembled 3463 | -9/Mines | Joined a pair of Derelicts in attacking an 0b10 outpost 3626 | -9/Mines | Build established: Mutant 3965 | -9/Mines | Found the Drone Emporium 3981 | -9/Mines | Found Prototype Device 4102 | -9/Mines | Discovered new exit (range 5) 4124 | -9/Mines | Entered Materials 4124 | -8/Materials | Evolved 4 slots: Power x1, Propulsion x1, Utility x2 4124 | -8/Materials | Identified Splice Drone Bay 4185 | -8/Materials | Build established: Scavenger-Skirmisher 6204 | -8/Materials | Lost 4 parts (2p2n) 6319 | -8/Materials | Build established: Skirmisher 6856 | -8/Materials | Core integrity fell below 50% 6872 | -8/Materials | Core integrity fell below 20% 6913 | -8/Materials | Destroyed by G-47 Trooper with Particle Gun Last Messages --------------- K-01 Serf collects debris. U-05 Engineer lays Concrete. Power failure, Lgt. Deuterium Engine shutdown. U-05 Engineer builds a Wall. Power failure, Nuclear Core shutdown. U-05 Engineer builds a Wall. K-01 Serf collects debris. U-05 Engineer builds a Wall. K-01 Serf collects debris. U-05 Engineer builds a Wall. U-05 Engineer lays Concrete. Kicked U-05 Engineer. U-05 Engineer builds a Door. U-05 Engineer lays Concrete. Acquired 15 matter. Kicked K-01 Serf out of the way. Atomic Centrifuge disabled. U-05 Engineer builds a Wall. Nuclear Core destroyed. Critical hit (Burn: +37). Map ----- +----------------------------------------------------+ | ?????????????#?????##?# # ###??# ## | | ??#????#???##??##??#### ###########?#### ###+# | | ???#???????????????#?## # #?#??#?#### | | ????????????????#?###?# # ""##??##???## | | ########+#####??#?#?#?# # T"##???##??## | | / #??####??# # ""########### # | | #???# ########## # # [ # """ # | | ????# !!= + + *# "" # """ # | | ????# !== ########## # # !! """ # """ + | | ???## != #???#??#?# # + !] S" # # | | ?##?# #??##????# # # """ # # | | ????# ##??#??#?# ###### """ + # | | ?#??# ####?#???# #??### # ##+##+# | | ????# % ########## ###### [ # # | | ##########+### ##"T"#####+##### ## | | ^ !## | | # | | + | | ############## ^ !# | | ????????###### """ k ^^ *# == | | ?????#?## #h ! """"" t ^ ! # == | | ???##???# # """"" =# == | | ???##?#?# # """"" !! ###### | | #??#????#= # """ ! ####?? | | ???##??## #% ? | | #?###?### # @ g ? | | ### ##### # ###" "####+### u % ? | | T !## # ###"R"# g # #/########## ?? ? | | ## #% ###"""# ""g=# =% =##?? ?? ? | | ####+## ####### """ # =%* " #??? ? ? | | # ##???## """ # " ##?# ??? | | + ####??# / """ #???? ??? | | " "" # "#??#?# [ # "" "" #### # | | "" # T##???######## """ + + | | "" # "#?#?????????# = ####### # | | [ # """" ##?#?#???#??## ] #??#????? | | #+###### """" #???#??#?????###########????#??? | | """" ##?#??????#??????????#?#???????? | | #?????#?????#????????????????#?? | | #????????#?????????????????????? | | ####+##############??????????????????????????????? | | # #??#?????#??????????????????????????????? | | # #?????????????????????????????#?????????? | | # #?##??????#????????????? ???????? ??????? | | # #???#????????#??????????????????????????? | | # #?????#?????????????????????????????????? | | # #?#?????#???????????????????????????????? | | # #???#???????????#???????????????????????? | | #???????????????????????????????????????? | | #???#???#???????????????????????????????? | +----------------------------------------------------+ Best States ------------- Heat Dissipation 31 Energy Generation 23 Energy Capacity 450 Matter Stores 300 Matter Capacity 300 Sight Range 16 Terrain Scan Range 16 Terrain Scan Density 10 ECM Strength 1 Evasion (%) 55 Item Schematics ----------------- None Robot Schematics ------------------ None Fabricated ------------ Nothing Repaired ---------- Nothing Studied --------- VSS Leg | -8/Materials | Hacked Alien Tech Used ----------------- None Achievements -------------- None Challenges ------------ None Game ------ Seed MissileTeleporterAccelerator Manual? 0 Play Time 00:49:07 Cumulative 5.8 hours Start 2025.11.11 @ 09:26:50 End 2025.11.13 @ 10:24:53 Sessions 5 Manual Loads 0 Difficulty Rogue Special Mode None Game No. 11 Rogue 11 Adventurer 0 Explorer 0 Win Type - Total 0 Types 0/0/0/0/0/0/0/0/0/0 Lore% 10 Gallery% 8 Achievement% 11 Wizard Run 0 Options --------- Layout 1 ASCII 0 Keyboard 0 Movement Arrows Keybinds 0 Fullscreen 1 Font 24/Smallcaps Map View 50x35 Zoom Use 0% Tactical HUD 0 Map Filters NONE Filters NONE Steam 1 RUN: 80f59b7f-230c-48dd-8514-d517e9e2de42